[Event "Live Chess"]
[Site "Chess.com"]
[Date "2023.05.20"]
[Round "-"]
[White "WilliamofOrange16th"]
[Black "fso"]
[Result "0-1"]
[WhiteElo "1846"]
[BlackElo "2239"]
[TimeControl "300"]
[EndTime "15:37:53 PDT"]
[Termination "fso won on time"]

1. b3 {[%clk 0:04:57.8]} 1... Nf6 {[%clk 0:04:58.3]} 2. Bb2 {[%clk 0:04:57.2]}
2... Nc6 {[%clk 0:04:57.6]} 3. e3 {[%clk 0:04:55.4]} 3... e5 {[%clk 0:04:56.5]}
4. Nf3 {[%clk 0:04:54.5]} 4... d6 {[%clk 0:04:51.5]} 5. d4 {[%clk 0:04:53.3]}
5... e4 {[%clk 0:04:50]} 6. Nfd2 {[%clk 0:04:52.8]} 6... d5 {[%clk 0:04:49.2]}
7. c4 {[%clk 0:04:52.4]} 7... Nb4 {[%clk 0:04:45.8]} 8. a3 {[%clk 0:04:48.1]}
8... Nd3+ {[%clk 0:04:43.9]} 9. Bxd3 {[%clk 0:04:46.5]} 9... exd3 {[%clk
0:04:43.8]} 10. h3 {[%clk 0:04:40.6]} 10... Bf5 {[%clk 0:04:32.6]} 11. O-O
{[%clk 0:04:37.7]} 11... c6 {[%clk 0:04:31.3]} 12. Nf3 {[%clk 0:04:36.1]} 12...
Be7 {[%clk 0:04:27.7]} 13. Nbd2 {[%clk 0:04:34.2]} 13... O-O {[%clk 0:04:25.4]}
14. Re1 {[%clk 0:04:31.2]} 14... Ne4 {[%clk 0:04:18.6]} 15. Ne5 {[%clk
0:04:26.7]} 15... Bd6 {[%clk 0:03:34.5]} 16. cxd5 {[%clk 0:03:47.6]} 16... cxd5
{[%clk 0:03:30.9]} 17. Ndf3 {[%clk 0:03:46.6]} 17... f6 {[%clk 0:03:18.2]} 18.
Nxd3 {[%clk 0:03:44.8]} 18... Rc8 {[%clk 0:03:12.3]} 19. Rc1 {[%clk 0:03:05]}
19... Qd7 {[%clk 0:03:10.6]} 20. Nd2 {[%clk 0:02:34.5]} 20... Rxc1 {[%clk
0:01:59.7]} 21. Bxc1 {[%clk 0:02:26.6]} 21... Bxh3 {[%clk 0:01:52.8]} 22. Qh5
{[%clk 0:02:18.4]} 22... Nxd2 {[%clk 0:01:42.1]} 23. Bxd2 {[%clk 0:02:15.2]}
23... Bf5 {[%clk 0:01:36]} 24. Nc5 {[%clk 0:02:08.6]} 24... Bxc5 {[%clk
0:01:29.7]} 25. dxc5 {[%clk 0:02:08.5]} 25... Bg6 {[%clk 0:01:27.4]} 26. Qh4
{[%clk 0:01:58.4]} 26... Qb5 {[%clk 0:01:13.9]} 27. Rc1 {[%clk 0:01:06.6]} 27...
Qxb3 {[%clk 0:01:05.1]} 28. Qb4 {[%clk 0:01:05.5]} 28... Qxb4 {[%clk 0:00:57]}
29. axb4 {[%clk 0:01:05.4]} 29... a5 {[%clk 0:00:55.6]} 30. b5 {[%clk
0:01:02.6]} 30... Rc8 {[%clk 0:00:52]} 31. Bxa5 {[%clk 0:01:00.2]} 31... Bd3
{[%clk 0:00:47.4]} 32. Rd1 {[%clk 0:00:46.6]} 32... Bc4 {[%clk 0:00:40.2]} 33.
Bb4 {[%clk 0:00:42.6]} 33... Kf7 {[%clk 0:00:38.3]} 34. Rd4 {[%clk 0:00:28.6]}
34... Bxb5 {[%clk 0:00:31.8]} 35. Rxd5 {[%clk 0:00:27]} 35... Bc6 {[%clk
0:00:30.5]} 36. Rd6 {[%clk 0:00:19.7]} 36... Ra8 {[%clk 0:00:28]} 37. Kh2 {[%clk
0:00:18.6]} 37... Ra2 {[%clk 0:00:26.6]} 38. Bd2 {[%clk 0:00:17.4]} 38... Rc2
{[%clk 0:00:23.2]} 39. Kg3 {[%clk 0:00:13.6]} 39... Rxc5 {[%clk 0:00:21.7]} 40.
f3 {[%clk 0:00:12.6]} 40... Rg5+ {[%clk 0:00:20.5]} 41. Kf2 {[%clk 0:00:11.5]}
41... Rd5 {[%clk 0:00:19.6]} 42. Rxd5 {[%clk 0:00:09.2]} 42... Bxd5 {[%clk
0:00:19.5]} 43. e4 {[%clk 0:00:08.3]} 43... Bc6 {[%clk 0:00:19.4]} 44. Bb4
{[%clk 0:00:07.6]} 44... Ke6 {[%clk 0:00:18.8]} 45. Ke3 {[%clk 0:00:07.5]} 45...
g6 {[%clk 0:00:18.2]} 46. Kd4 {[%clk 0:00:06.8]} 46... f5 {[%clk 0:00:17.6]} 47.
exf5+ {[%clk 0:00:05.8]} 47... Kxf5 {[%clk 0:00:17.4]} 48. Ke3 {[%clk
0:00:04.9]} 48... h5 {[%clk 0:00:16.7]} 49. Kf2 {[%clk 0:00:04.5]} 49... g5
{[%clk 0:00:15.8]} 50. g3 {[%clk 0:00:03.6]} 50... g4 {[%clk 0:00:14.9]} 51. Be7
{[%clk 0:00:02.2]} 51... Bxf3 {[%clk 0:00:12.6]} 52. Bc5 {[%clk 0:00:00.9]}
52... Ke4 {[%clk 0:00:11.5]} 53. Bb6 {[%clk 0:00:00.1]} 53... Kd3 {[%clk
0:00:11]} 0-1

[Event "Live Chess"]
[Site "Chess.com"]
[Date "2023.05.20"]
[Round "-"]
[White "sanjesh_ananda"]
[Black "CameronM1234"]
[Result "0-1"]
[WhiteElo "896"]
[BlackElo "1095"]
[TimeControl "300"]
[EndTime "15:37:58 PDT"]
[Termination "CameronM1234 won on time"]

1. e4 {[%clk 0:04:57.1]} 1... g6 {[%clk 0:04:59.1]} 2. Nf3 {[%clk 0:04:49.4]}
2... Bg7 {[%clk 0:04:59]} 3. d4 {[%clk 0:04:47.2]} 3... d6 {[%clk 0:04:58.2]} 4.
Bc4 {[%clk 0:04:44.1]} 4... Nf6 {[%clk 0:04:56.3]} 5. Nc3 {[%clk 0:04:38.9]}
5... Nxe4 {[%clk 0:04:53.9]} 6. Nxe4 {[%clk 0:04:36.2]} 6... d5 {[%clk
0:04:53.8]} 7. Bb5+ {[%clk 0:04:19.2]} 7... c6 {[%clk 0:04:51.5]} 8. Bxc6+
{[%clk 0:04:18]} 8... bxc6 {[%clk 0:04:50.3]} 9. Nc5 {[%clk 0:04:12.7]} 9... Nd7
{[%clk 0:04:45.3]} 10. O-O {[%clk 0:03:56.2]} 10... Nxc5 {[%clk 0:04:43.8]} 11.
dxc5 {[%clk 0:03:54.8]} 11... O-O {[%clk 0:04:38.1]} 12. Re1 {[%clk 0:03:43.4]}
12... Re8 {[%clk 0:04:27.4]} 13. h3 {[%clk 0:03:41]} 13... e5 {[%clk 0:04:26.1]}
14. Ng5 {[%clk 0:03:31.4]} 14... h6 {[%clk 0:04:14.5]} 15. Nf3 {[%clk
0:03:23.6]} 15... e4 {[%clk 0:04:13.5]} 16. Nd4 {[%clk 0:03:16.5]} 16... Be5
{[%clk 0:03:52.7]} 17. c3 {[%clk 0:03:08]} 17... Qf6 {[%clk 0:03:50.7]} 18. Be3
{[%clk 0:02:49.4]} 18... Bd7 {[%clk 0:03:33.3]} 19. Rc1 {[%clk 0:02:29.3]} 19...
Kh7 {[%clk 0:03:22.9]} 20. c4 {[%clk 0:02:21.6]} 20... Qe7 {[%clk 0:03:15.7]}
21. cxd5 {[%clk 0:02:14.6]} 21... cxd5 {[%clk 0:03:15.6]} 22. c6 {[%clk
0:02:11.2]} 22... Bc8 {[%clk 0:03:02.9]} 23. Qd2 {[%clk 0:01:23.3]} 23... g5
{[%clk 0:02:59]} 24. b4 {[%clk 0:01:11.8]} 24... a6 {[%clk 0:02:55]} 25. a4
{[%clk 0:01:08.3]} 25... Rb8 {[%clk 0:02:49.6]} 26. c7 {[%clk 0:00:57.8]} 26...
Rxb4 {[%clk 0:02:44.5]} 27. Nc6 {[%clk 0:00:56.2]} 27... Bh2+ {[%clk 0:02:07.3]}
28. Kxh2 {[%clk 0:00:37.1]} 28... Qd6+ {[%clk 0:02:06]} 29. Kg1 {[%clk
0:00:25.2]} 29... Rxa4 {[%clk 0:01:52.2]} 30. Kh1 {[%clk 0:00:15.7]} 30... Re6
{[%clk 0:01:43.6]} 31. Nd4 {[%clk 0:00:13]} 31... Re7 {[%clk 0:01:41.4]} 32. Nf5
{[%clk 0:00:11.2]} 32... Qd7 {[%clk 0:01:36.8]} 33. Nxe7 {[%clk 0:00:09.7]}
33... Qxe7 {[%clk 0:01:36.7]} 34. Qb2 {[%clk 0:00:06.2]} 34... Rb4 {[%clk
0:01:32.5]} 0-1

[Event "Live Chess"]
[Site "Chess.com"]
[Date "2023.05.20"]
[Round "-"]
[White "gmnorfolk"]
[Black "Stanbad1"]
[Result "0-1"]
[WhiteElo "2124"]
[BlackElo "2401"]
[TimeControl "300"]
[EndTime "15:38:00 PDT"]
[Termination "Stanbad1 won by resignation"]

1. a3 {[%clk 0:04:57]} 1... e6 {[%clk 0:04:57.3]} 2. c4 {[%clk 0:04:55.4]} 2...
Nf6 {[%clk 0:04:56.6]} 3. g3 {[%clk 0:04:53]} 3... c5 {[%clk 0:04:55.9]} 4. Bg2
{[%clk 0:04:51.2]} 4... Be7 {[%clk 0:04:53.9]} 5. Nf3 {[%clk 0:04:50.1]} 5...
O-O {[%clk 0:04:50.6]} 6. O-O {[%clk 0:04:48.8]} 6... Nc6 {[%clk 0:04:48.5]} 7.
b3 {[%clk 0:04:47.9]} 7... a6 {[%clk 0:04:46.5]} 8. Bb2 {[%clk 0:04:47]} 8...
Rb8 {[%clk 0:04:45.4]} 9. d4 {[%clk 0:04:45.9]} 9... b5 {[%clk 0:04:44]} 10. d5
{[%clk 0:04:44.8]} 10... exd5 {[%clk 0:04:38.2]} 11. cxd5 {[%clk 0:04:43.3]}
11... Nd4 {[%clk 0:04:37.6]} 12. Nxd4 {[%clk 0:04:36.9]} 12... cxd4 {[%clk
0:04:37.5]} 13. Bxd4 {[%clk 0:04:30.4]} 13... d6 {[%clk 0:04:34.6]} 14. Nc3
{[%clk 0:04:25.3]} 14... Bb7 {[%clk 0:04:31.8]} 15. b4 {[%clk 0:04:23.5]} 15...
Rc8 {[%clk 0:04:24]} 16. e4 {[%clk 0:04:20.6]} 16... Rc4 {[%clk 0:04:20.7]} 17.
Qd3 {[%clk 0:04:16]} 17... Ng4 {[%clk 0:04:12.8]} 18. Rfd1 {[%clk 0:04:02.7]}
18... Bf6 {[%clk 0:04:11.2]} 19. Ne2 {[%clk 0:03:49]} 19... Bxd4 {[%clk
0:04:04.3]} 20. Nxd4 {[%clk 0:03:47.6]} 20... Qf6 {[%clk 0:04:04.2]} 21. f4
{[%clk 0:03:36.3]} 21... Rfc8 {[%clk 0:04:00.7]} 22. Qe2 {[%clk 0:03:02.3]}
22... h5 {[%clk 0:03:50.9]} 23. Qd2 {[%clk 0:02:38.7]} 23... Rc3 {[%clk
0:03:45.8]} 24. Nc6 {[%clk 0:02:23.1]} 24... Bxc6 {[%clk 0:03:39.6]} 25. e5
{[%clk 0:02:15.5]} 25... dxe5 {[%clk 0:03:36.8]} 26. Qxc3 {[%clk 0:02:13.6]}
26... Bd7 {[%clk 0:03:35.1]} 27. Qf3 {[%clk 0:01:43.7]} 27... Qb6+ {[%clk
0:03:30.8]} 28. Kh1 {[%clk 0:01:35.2]} 28... e4 {[%clk 0:03:26.2]} 29. Qe2
{[%clk 0:01:25.5]} 29... Nf2+ {[%clk 0:03:24.5]} 30. Kg1 {[%clk 0:01:23.3]}
30... Nxd1+ {[%clk 0:03:24.1]} 31. Kf1 {[%clk 0:01:20.2]} 31... Ne3+ {[%clk
0:03:23.2]} 32. Ke1 {[%clk 0:01:18.8]} 32... Nc2+ {[%clk 0:03:22.4]} 0-1

[Event "Live Chess"]
[Site "Chess.com"]
[Date "2023.05.20"]
[Round "-"]
[White "JoeyCage"]
[Black "raimundklein"]
[Result "1-0"]
[WhiteElo "2319"]
[BlackElo "1606"]
[TimeControl "300"]
[EndTime "15:38:57 PDT"]
[Termination "JoeyCage won by checkmate"]

1. e4 {[%clk 0:04:55]} 1... c6 {[%clk 0:04:58.7]} 2. d4 {[%clk 0:04:49.9]} 2...
d5 {[%clk 0:04:57.8]} 3. e5 {[%clk 0:04:47.4]} 3... Bf5 {[%clk 0:04:56]} 4. c4
{[%clk 0:04:43.1]} 4... e6 {[%clk 0:04:54.1]} 5. Nc3 {[%clk 0:04:42.1]} 5... Nd7
{[%clk 0:04:27.4]} 6. Be3 {[%clk 0:04:39.7]} 6... Ne7 {[%clk 0:04:24.4]} 7. c5
{[%clk 0:04:38.1]} 7... Nc8 {[%clk 0:04:08.8]} 8. Nge2 {[%clk 0:04:23.6]} 8...
h6 {[%clk 0:04:06.3]} 9. Ng3 {[%clk 0:04:22]} 9... Bh7 {[%clk 0:04:05.4]} 10. f4
{[%clk 0:04:19.8]} 10... Be7 {[%clk 0:04:03.7]} 11. Be2 {[%clk 0:04:17.3]} 11...
O-O {[%clk 0:04:02.2]} 12. O-O {[%clk 0:04:16]} 12... b6 {[%clk 0:04:00.7]} 13.
b4 {[%clk 0:04:14.4]} 13... a5 {[%clk 0:03:57.5]} 14. a3 {[%clk 0:04:13.1]}
14... axb4 {[%clk 0:03:56.5]} 15. axb4 {[%clk 0:04:12]} 15... Rxa1 {[%clk
0:03:51.7]} 16. Qxa1 {[%clk 0:04:11.2]} 16... bxc5 {[%clk 0:03:50.4]} 17. bxc5
{[%clk 0:04:10]} 17... Qc7 {[%clk 0:03:49.5]} 18. f5 {[%clk 0:03:58]} 18... exf5
{[%clk 0:03:36.9]} 19. Nxf5 {[%clk 0:03:56]} 19... Bxf5 {[%clk 0:03:35.4]} 20.
Rxf5 {[%clk 0:03:54.2]} 20... Qa7 {[%clk 0:03:35.1]} 21. Qf1 {[%clk 0:03:38.3]}
21... Qa3 {[%clk 0:03:28.8]} 22. Nd1 {[%clk 0:03:35.8]} 22... Bd8 {[%clk
0:02:54.3]} 23. Rf3 {[%clk 0:03:32.9]} 23... Ne7 {[%clk 0:02:50.9]} 24. Bxh6
{[%clk 0:03:27.7]} 24... Qa4 {[%clk 0:02:40.5]} 25. Be3 {[%clk 0:03:25.4]} 25...
Ng6 {[%clk 0:02:38.9]} 26. g3 {[%clk 0:03:19.6]} 26... Ndxe5 {[%clk 0:02:18]}
27. dxe5 {[%clk 0:03:14.9]} 27... Nxe5 {[%clk 0:02:17.9]} 28. Rf4 {[%clk
0:03:12.3]} 28... Qa3 {[%clk 0:02:13.4]} 29. Bd4 {[%clk 0:03:10.8]} 29... Ng6
{[%clk 0:02:08.6]} 30. Rf3 {[%clk 0:03:05.9]} 30... Qa4 {[%clk 0:01:56.7]} 31.
Qf2 {[%clk 0:03:03.2]} 31... Re8 {[%clk 0:01:50]} 32. Bd3 {[%clk 0:02:53.2]}
32... Qxd1+ {[%clk 0:01:41]} 33. Kg2 {[%clk 0:02:45.7]} 33... Ne5 {[%clk
0:01:23.4]} 34. Bxe5 {[%clk 0:02:43.7]} 34... Rxe5 {[%clk 0:01:22]} 35. Rxf7
{[%clk 0:02:42.4]} 35... Qxd3 {[%clk 0:01:20.4]} 36. Rf8+ {[%clk 0:02:33.2]}
36... Kh7 {[%clk 0:01:19.5]} 37. Qf4 {[%clk 0:02:29.3]} 37... Re2+ {[%clk
0:01:08.7]} 38. Kh3 {[%clk 0:02:26.4]} 38... Bf6 {[%clk 0:01:03.3]} 39. Qg4
{[%clk 0:02:19]} 39... Qg6 {[%clk 0:01:00.7]} 40. Qxe2 {[%clk 0:02:15.8]} 40...
Qh6+ {[%clk 0:00:54.5]} 41. Kg2 {[%clk 0:02:12.8]} 41... Bd4 {[%clk 0:00:51.3]}
42. Qe8 {[%clk 0:02:07]} 42... Qd2+ {[%clk 0:00:47.6]} 43. Kh3 {[%clk 0:02:05]}
43... Qh6+ {[%clk 0:00:46.3]} 44. Kg4 {[%clk 0:02:02.5]} 44... Qd2 {[%clk
0:00:24.6]} 45. Rh8# {[%clk 0:01:59.6]} 1-0

[Event "Live Chess"]
[Site "Chess.com"]
[Date "2023.05.20"]
[Round "-"]
[White "nigelst"]
[Black "mikkyb4"]
[Result "1-0"]
[WhiteElo "1831"]
[BlackElo "1002"]
[TimeControl "300"]
[EndTime "15:39:26 PDT"]
[Termination "nigelst won by resignation"]

1. e4 {[%clk 0:04:58.3]} 1... g6 {[%clk 0:04:59.3]} 2. d4 {[%clk 0:04:56.5]}
2... Bg7 {[%clk 0:04:58.7]} 3. Nc3 {[%clk 0:04:54.9]} 3... d6 {[%clk 0:04:57.9]}
4. f4 {[%clk 0:04:53.1]} 4... Nc6 {[%clk 0:04:55.9]} 5. Nf3 {[%clk 0:04:51]}
5... Bg4 {[%clk 0:04:54.4]} 6. Be3 {[%clk 0:04:46.4]} 6... Bxf3 {[%clk
0:04:52.4]} 7. gxf3 {[%clk 0:04:43.3]} 7... d5 {[%clk 0:04:50.7]} 8. Nxd5 {[%clk
0:04:37]} 8... e6 {[%clk 0:04:49.2]} 9. Nc3 {[%clk 0:04:35.1]} 9... Bxd4 {[%clk
0:04:47.9]} 10. Qe2 {[%clk 0:04:27.7]} 10... Qh4+ {[%clk 0:04:34.9]} 11. Bf2
{[%clk 0:04:19.4]} 11... Bxf2+ {[%clk 0:04:33.3]} 12. Qxf2 {[%clk 0:04:17.8]}
12... Qxf4 {[%clk 0:04:28.4]} 13. Ne2 {[%clk 0:04:08.1]} 13... Qd6 {[%clk
0:04:12]} 14. Nc3 {[%clk 0:03:50.3]} 14... O-O-O {[%clk 0:03:56.3]} 15. Bd3
{[%clk 0:03:48.3]} 15... Qf4 {[%clk 0:03:40.9]} 16. Ne2 {[%clk 0:03:34]} 16...
Qg5 {[%clk 0:03:33.3]} 17. f4 {[%clk 0:03:30]} 17... Qa5+ {[%clk 0:03:27.6]} 18.
Nc3 {[%clk 0:03:23.6]} 18... Nd4 {[%clk 0:03:18]} 19. O-O-O {[%clk 0:03:17.7]}
19... Ne7 {[%clk 0:03:11.3]} 20. Kb1 {[%clk 0:03:14.4]} 20... Nec6 {[%clk
0:03:05.8]} 21. Rhf1 {[%clk 0:03:03]} 21... Nb4 {[%clk 0:03:03.1]} 22. a3 {[%clk
0:02:54.4]} 22... Nbc6 {[%clk 0:02:46.6]} 23. f5 {[%clk 0:02:43.7]} 23... e5
{[%clk 0:02:36.8]} 24. fxg6 {[%clk 0:02:33.8]} 24... fxg6 {[%clk 0:02:35.7]} 25.
Nd5 {[%clk 0:02:25.8]} 25... Qc5 {[%clk 0:02:12.5]} 26. Qf7 {[%clk 0:02:11.6]}
26... Rd7 {[%clk 0:01:55.1]} 27. Qf6 {[%clk 0:02:07.5]} 27... Na5 {[%clk
0:01:45.7]} 28. Qxh8+ {[%clk 0:02:05.6]} 28... Rd8 {[%clk 0:01:44]} 29. Qxe5
{[%clk 0:02:00]} 29... Nc4 {[%clk 0:01:38.7]} 30. Rf7 {[%clk 0:01:47.9]} 30...
Nxa3+ {[%clk 0:01:01.4]} 31. bxa3 {[%clk 0:01:27.8]} 31... Nb5 {[%clk 0:00:52]}
32. Bxb5 {[%clk 0:01:11.3]} 32... Qxb5+ {[%clk 0:00:51]} 33. Qb2 {[%clk
0:01:08.4]} 1-0

[Event "Live Chess"]
[Site "Chess.com"]
[Date "2023.05.20"]
[Round "-"]
[White "hturner40"]
[Black "domrobson"]
[Result "1-0"]
[WhiteElo "1809"]
[BlackElo "1782"]
[TimeControl "300"]
[EndTime "15:39:46 PDT"]
[Termination "hturner40 won by resignation"]

1. Nf3 {[%clk 0:04:55.5]} 1... Nf6 {[%clk 0:04:58.5]} 2. g3 {[%clk 0:04:54.2]}
2... d5 {[%clk 0:04:57.9]} 3. Bg2 {[%clk 0:04:53.3]} 3... e6 {[%clk 0:04:57.3]}
4. O-O {[%clk 0:04:51.4]} 4... c6 {[%clk 0:04:56.9]} 5. d3 {[%clk 0:04:46.5]}
5... Nbd7 {[%clk 0:04:56.1]} 6. Nbd2 {[%clk 0:04:45.4]} 6... Bd6 {[%clk
0:04:55.3]} 7. c3 {[%clk 0:04:44.4]} 7... e5 {[%clk 0:04:54.4]} 8. Qc2 {[%clk
0:04:42.2]} 8... Qe7 {[%clk 0:04:53.4]} 9. e4 {[%clk 0:04:41]} 9... O-O {[%clk
0:04:49.6]} 10. a4 {[%clk 0:04:24.1]} 10... dxe4 {[%clk 0:04:46.8]} 11. Nxe4
{[%clk 0:04:17.5]} 11... Nxe4 {[%clk 0:04:45.6]} 12. dxe4 {[%clk 0:04:16.3]}
12... Nf6 {[%clk 0:04:44.5]} 13. Rd1 {[%clk 0:04:08.4]} 13... Bg4 {[%clk
0:04:39.3]} 14. Be3 {[%clk 0:03:45]} 14... Bc5 {[%clk 0:04:34.9]} 15. Bxc5
{[%clk 0:03:40.2]} 15... Qxc5 {[%clk 0:04:33.8]} 16. b4 {[%clk 0:03:38.3]} 16...
Qc4 {[%clk 0:04:28.1]} 17. Nxe5 {[%clk 0:03:35]} 17... Qe6 {[%clk 0:04:24.1]}
18. Nxg4 {[%clk 0:03:30.9]} 18... Qxg4 {[%clk 0:04:22.9]} 19. h3 {[%clk
0:03:16.8]} 19... Qe6 {[%clk 0:04:20.1]} 20. Rd4 {[%clk 0:03:13.1]} 20... Rfd8
{[%clk 0:04:15]} 21. Rad1 {[%clk 0:03:09.3]} 21... Rxd4 {[%clk 0:04:13.6]} 22.
Rxd4 {[%clk 0:03:07.7]} 22... Qe7 {[%clk 0:04:12.1]} 23. Qd3 {[%clk 0:03:02.5]}
23... c5 {[%clk 0:04:10]} 24. Rd6 {[%clk 0:02:57.2]} 24... Ne8 {[%clk
0:04:05.2]} 25. Rd7 {[%clk 0:02:54.6]} 25... Qg5 {[%clk 0:03:59.9]} 26. Qd5
{[%clk 0:02:41.8]} 26... Qxd5 {[%clk 0:03:57.6]} 27. exd5 {[%clk 0:02:35.6]}
27... cxb4 {[%clk 0:03:56.6]} 28. cxb4 {[%clk 0:02:33.8]} 28... Rb8 {[%clk
0:03:53.9]} 29. d6 {[%clk 0:02:32.4]} 29... Kf8 {[%clk 0:03:47.2]} 30. b5 {[%clk
0:02:17.3]} 30... a6 {[%clk 0:03:44.1]} 31. Rxb7 {[%clk 0:02:12.7]} 31... Rxb7
{[%clk 0:03:39.2]} 32. Bxb7 {[%clk 0:02:11]} 32... axb5 {[%clk 0:03:37.6]} 33.
d7 {[%clk 0:02:09.3]} 33... Ke7 {[%clk 0:03:32.9]} 34. dxe8=Q+ {[%clk
0:02:06.9]} 1-0

[Event "Live Chess"]
[Site "Chess.com"]
[Date "2023.05.20"]
[Round "-"]
[White "raminguy"]
[Black "elvenstar"]
[Result "1-0"]
[WhiteElo "1960"]
[BlackElo "1565"]
[TimeControl "300"]
[EndTime "15:39:49 PDT"]
[Termination "raminguy won on time"]

1. d4 {[%clk 0:04:58.8]} 1... Nf6 {[%clk 0:04:57.5]} 2. Nc3 {[%clk 0:04:58.1]}
2... d5 {[%clk 0:04:56.4]} 3. Bf4 {[%clk 0:04:56.9]} 3... c6 {[%clk 0:04:53.8]}
4. e3 {[%clk 0:04:55.8]} 4... Bf5 {[%clk 0:04:51.4]} 5. Nf3 {[%clk 0:04:55]}
5... e6 {[%clk 0:04:49.8]} 6. Ne5 {[%clk 0:04:54.5]} 6... Bd6 {[%clk 0:04:48.4]}
7. g4 {[%clk 0:04:53.8]} 7... Bg6 {[%clk 0:04:41.1]} 8. h4 {[%clk 0:04:52.6]}
8... h5 {[%clk 0:04:30.5]} 9. Nxg6 {[%clk 0:04:48.7]} 9... fxg6 {[%clk
0:04:26.1]} 10. Qd3 {[%clk 0:04:47.3]} 10... Kf7 {[%clk 0:04:11.6]} 11. g5
{[%clk 0:04:41.9]} 11... Ng8 {[%clk 0:03:51.7]} 12. Bh3 {[%clk 0:04:36.9]} 12...
Ne7 {[%clk 0:03:42.4]} 13. O-O-O {[%clk 0:04:28.4]} 13... Nf5 {[%clk 0:03:38.9]}
14. Bxd6 {[%clk 0:04:07.8]} 14... Qxd6 {[%clk 0:03:33.3]} 15. e4 {[%clk
0:04:06.9]} 15... dxe4 {[%clk 0:03:30.3]} 16. Nxe4 {[%clk 0:03:52.7]} 16... Qf4+
{[%clk 0:03:23.2]} 17. Kb1 {[%clk 0:03:51.5]} 17... Nd7 {[%clk 0:03:09.7]} 18.
Bxf5 {[%clk 0:03:46.7]} 18... exf5 {[%clk 0:02:58.6]} 19. Nc3 {[%clk 0:03:33.9]}
19... Nb6 {[%clk 0:02:36.9]} 20. a4 {[%clk 0:03:16.2]} 20... a5 {[%clk
0:02:27.4]} 21. d5 {[%clk 0:03:12.3]} 21... Rhd8 {[%clk 0:02:05.4]} 22. d6
{[%clk 0:03:11.3]} 22... Rd7 {[%clk 0:01:51.1]} 23. Ne2 {[%clk 0:02:53.7]} 23...
Qxa4 {[%clk 0:01:43.2]} 24. Qe3 {[%clk 0:02:49.1]} 24... Nd5 {[%clk 0:01:22.9]}
25. Qc5 {[%clk 0:01:40.3]} 25... b6 {[%clk 0:01:15.8]} 26. Nc3 {[%clk
0:01:19.1]} 26... Nxc3+ {[%clk 0:00:38.8]} 27. Qxc3 {[%clk 0:01:17.3]} 27... Re8
{[%clk 0:00:23]} 28. Rd4 {[%clk 0:01:14.5]} 28... Qb5 {[%clk 0:00:17.8]} 29. Re1
{[%clk 0:01:12.3]} 29... Re5 {[%clk 0:00:10.1]} 30. f4 {[%clk 0:01:02.5]} 30...
Rc5 {[%clk 0:00:01.8]} 31. Qe3 {[%clk 0:00:56.1]} 1-0

[Event "Live Chess"]
[Site "Chess.com"]
[Date "2023.05.20"]
[Round "-"]
[White "Jo1ts"]
[Black "JohanKjeldahl"]
[Result "0-1"]
[WhiteElo "779"]
[BlackElo "1858"]
[TimeControl "300"]
[EndTime "15:39:54 PDT"]
[Termination "JohanKjeldahl won by resignation"]

1. d4 {[%clk 0:04:57.6]} 1... Nf6 {[%clk 0:04:58]} 2. Bf4 {[%clk 0:04:55.2]}
2... d6 {[%clk 0:04:56.2]} 3. Nf3 {[%clk 0:04:53]} 3... g6 {[%clk 0:04:53.6]} 4.
e3 {[%clk 0:04:50.3]} 4... Bg7 {[%clk 0:04:52.8]} 5. Nbd2 {[%clk 0:04:43.1]}
5... O-O {[%clk 0:04:51.5]} 6. Bd3 {[%clk 0:04:41.1]} 6... c6 {[%clk 0:04:50.2]}
7. h4 {[%clk 0:04:36.1]} 7... Nbd7 {[%clk 0:04:48.6]} 8. e4 {[%clk 0:04:23.5]}
8... e5 {[%clk 0:04:45]} 9. dxe5 {[%clk 0:04:17.1]} 9... dxe5 {[%clk 0:04:43.8]}
10. Be3 {[%clk 0:04:11.8]} 10... Ng4 {[%clk 0:04:41.3]} 11. Ng5 {[%clk 0:03:55]}
11... Nxe3 {[%clk 0:04:38.2]} 12. fxe3 {[%clk 0:03:50.4]} 12... Nc5 {[%clk
0:04:33.5]} 13. Bc4 {[%clk 0:03:40]} 13... b5 {[%clk 0:04:30.2]} 14. Bb3 {[%clk
0:03:36]} 14... a5 {[%clk 0:04:29]} 15. a3 {[%clk 0:03:33.8]} 15... a4 {[%clk
0:04:21.1]} 16. Ba2 {[%clk 0:03:33]} 16... h6 {[%clk 0:04:19.5]} 17. Ngf3 {[%clk
0:03:29.7]} 17... Bg4 {[%clk 0:04:17.8]} 18. Qe2 {[%clk 0:03:21.9]} 18... Qe7
{[%clk 0:04:09.9]} 19. c4 {[%clk 0:03:19.7]} 19... Rfd8 {[%clk 0:04:04]} 20.
cxb5 {[%clk 0:03:14.9]} 20... Nd3+ {[%clk 0:03:59.1]} 21. Kf1 {[%clk 0:03:07.3]}
21... cxb5 {[%clk 0:03:57.2]} 22. Nb1 {[%clk 0:02:55.4]} 22... Rac8 {[%clk
0:03:54]} 23. Nc3 {[%clk 0:02:53.5]} 23... b4 {[%clk 0:03:41.3]} 24. Nd5 {[%clk
0:02:42.9]} 24... Qa7 {[%clk 0:03:34.4]} 25. Ne7+ {[%clk 0:02:37.9]} 25... Qxe7
{[%clk 0:03:31.7]} 26. Bb1 {[%clk 0:02:34.8]} 26... Rc1+ {[%clk 0:03:15]} 0-1